[Event "European Womens-ch 2025"]
[Site "Rhodes"]
[Date "2025.04.03"]
[Round "4.44"]
[White "Grapsa, Georgia"]
[Black "Wikar, Martyna"]
[Result "0-1"]
[Annotator "RC"]
[ECO "A87"]
[WhiteElo "2065"]
[BlackElo "2239"]
[PlyCount "100"]
[EventDate "2025.03.29"]
[EventType "swiss"]
[EventCountry "GRE"]
[SourceTitle "playchess.com"]
[Source "ChessBase"]
[SourceQuality "1"]
[TimeControl "40/5400+30:1800+30"]

1. d4 {[%emt 0:00:01]} f5 {[%emt 0:00:11]} 2. c4 {[%emt 0:00:12]} Nf6 {[%emt 0:00:11]} 3. g3 {[%emt 0:00:17]} g6 {[%emt 0:00:23]} 4. Bg2 {[%emt 0:00:09]} Bg7 {[%emt 0:00:07]} 5. Nf3 {[%emt 0:04:56]} O-O {[%emt 0:00:18]} 6. O-O {[%emt 0:00:04]} d6 {[%emt 0:00:12]} 7. Nc3 {[%emt 0:00:05]} e6 {[%emt 0:00:06]} 8. Re1 {[%emt 0:02:41]} Ne4 {[%emt 0:00:23]} 9. Qd3 {[%emt 0:04:54]} Nxc3 {[%emt 0:01:17]} 10. Qxc3 {[%emt 0:00:04]} Nc6 {[%emt 0:03:11]} 11. Qd2 {[%emt 0:06:40]} e5 {[%emt 0:04:47]} 12. d5 {[%emt 0:01:58]} Nb8 {[%emt 0:07:05]} 13. b3 {[%emt 0:03:56]} a5 {[%emt 0:03:21]} 14. Bb2 {[%emt 0:02:53]} Nd7 {[%emt 0:02:16]} 15. Ng5 {[%emt 0:08:03]} Nc5 {[%emt 0:12:55]} 16. Ne6 {[%emt 0:07:27]} Nxe6 {[%emt 0:04:34]} 17. dxe6 {[%emt 0:02:05]} Ra7 {[%emt 0:01:45]} 18. c5 {[%emt 0:05:44]} dxc5 {[%emt 0:12:06]} 19. Qe3 {[%emt 0:07:47]} Qe7 {[%emt 0:10:55]} 20. Rac1 {[%emt 0:09:09]} b6 {[%emt 0:01:15]} 21. Red1 {[%emt 0:01:16]} e4 {[%emt 0:02:52]} 22. Bxg7 {[%emt 0:00:32]} Kxg7 {[%emt 0:02:24]} 23. f3 {[%emt 0:02:11]} Qxe6 {[%emt 0:02:40]} 24. fxe4 {[%emt 0:00:41]} Re8 {[%emt 0:02:07]} 25. Qc3+ {[%emt 0:02:27]} Qf6 {[%emt 0:00:15]} 26. Qxf6+ {[%emt 0:04:30]} Kxf6 {[%emt 0:00:02]} 27. exf5 {[%emt 0:00:07]} Rxe2 {[%emt 0:05:26]} 28. fxg6 {[%emt 0:00:25]} hxg6 {[%emt 0:00:14]} 29. Rf1+ {[%emt 0:05:04]} Kg7 {[%emt 0:02:59]} 30. Rce1 {[%emt 0:08:58]} Rxe1 {[%emt 0:02:35]} 31. Rxe1 {[%emt 0:00:03]} Kf6 {[%emt 0:01:28]} 32. Rf1+ {[%emt 0:00:46]} Ke5 {[%emt 0:01:28]} 33. Re1+ {[%emt 0:05:56]} Kd4 {[%emt 0:01:12]} 34. Be4 {[%emt 0:01:34]} Bf5 {[%emt 0:10:32]} 35. Bxf5 {[%emt 0:02:24]} gxf5 {[%emt 0:00:02]} 36. h4 {[%emt 0:00:19]} b5 {[%emt 0:01:10]} 37. Rf1 {[%emt 0:01:40]} c4 {[%emt 0:00:48]} 38. Rf4+ {[%emt 0:00:32]} Kd3 {[%emt 0:01:19]} 39. Rf3+ {[%emt 0:00:15]} Ke4 {[%emt 0:02:23]} 40. Rf4+ {[%emt 0:00:00]} Kd3 {[%emt 0:00:00]} 41. bxc4 {[%emt 0:02:40]} bxc4 {[%emt 0:03:37]} 42. Rxf5 {[%emt 0:00:03]} c3 {[%emt 0:06:26]} 43. Rc5 {[%emt 0:04:15]} c2 {[%emt 0:03:08]} 44. Kg2 {[%emt 0:08:26]} Kd2 {[%emt 0:03:03]} 45. Rd5+ {[%emt 0:00:08]} Kc3 {[%emt 0:00:04]} 46. Rc5+ {[%emt 0:00:09]} Kb2 {[%emt 0:00:04]} 47. Rb5+ {[%emt 0:00:23]} Kxa2 {[%emt 0:00:06]} 48. Rc5 {[%emt 0:00:01]} Kb3 {[%emt 0:01:29]} 49. h5 {[%emt 0:00:42]} a4 {[%emt 0:01:21]} 50. h6 {[%emt 0:04:03]} a3 {[%emt 0:00:19]} 0-1

[Event "European Womens-ch 2025"]
[Site "Rhodes"]
[Date "2025.04.03"]
[Round "4.45"]
[White "Rudzinska, Michalina"]
[Black "Bochnickova, Andrea"]
[Result "1-0"]
[Annotator "RC"]
[ECO "B30"]
[WhiteElo "2223"]
[BlackElo "2051"]
[PlyCount "79"]
[EventDate "2025.03.29"]
[EventType "swiss"]
[EventCountry "GRE"]
[SourceTitle "playchess.com"]
[Source "ChessBase"]
[SourceQuality "1"]
[TimeControl "40/5400+30:1800+30"]

1. e4 {[%emt 0:00:05]} c5 {[%emt 0:00:07]} 2. Nf3 {[%emt 0:00:09]} Nc6 {[%emt 0:00:06]} 3. Bc4 {[%emt 0:00:17]} e6 {[%emt 0:00:44]} 4. O-O {[%emt 0:00:22]} Qc7 {[%emt 0:00:16]} 5. Re1 {[%emt 0:00:54]} Nf6 {[%emt 0:02:55]} 6. e5 {[%emt 0:11:13]} Ng4 {[%emt 0:06:08]} 7. Qe2 {[%emt 0:00:32]} d6 {[%emt 0:01:59]} 8. exd6 {[%emt 0:11:29]} Bxd6 {[%emt 0:00:33]} 9. h3 {[%emt 0:00:44]} Nge5 {[%emt 0:05:29]} 10. Nxe5 {[%emt 0:02:20]} Nxe5 {[%emt 0:04:17]} 11. Nc3 {[%emt 0:01:08]} a6 {[%emt 0:01:45]} 12. Ne4 {[%emt 0:02:22]} Nxc4 {[%emt 0:05:35]} 13. Qxc4 {[%emt 0:01:06]} O-O {[%emt 0:01:44]} 14. a4 {[%emt 0:05:14]} b6 {[%emt 0:13:42]} 15. Nxd6 {[%emt 0:04:29]} Qxd6 {[%emt 0:04:26]} 16. Ra3 {[%emt 0:00:10]} Bb7 {[%emt 0:06:25]} 17. Rd3 {[%emt 0:01:36]} Qc6 {[%emt 0:02:07]} 18. Rg3 {[%emt 0:00:22]} Rad8 {[%emt 0:04:00]} 19. Qg4 {[%emt 0:03:45]} g6 {[%emt 0:02:05]} 20. b3 {[%emt 0:00:57]} Rd4 {[%emt 0:02:59]} 21. Qg5 {[%emt 0:01:00]} f6 {[%emt 0:06:13]} 22. Qh6 {[%emt 0:01:06]} Re4 {[%emt 0:03:42]} 23. Rd1 {[%emt 0:05:04]} Qd5 {[%emt 0:04:43]} 24. Bb2 {[%emt 0:04:21]} e5 {[%emt 0:03:53]} 25. d3 {[%emt 0:06:16]} Re2 {[%emt 0:08:44]} 26. Qc1 {[%emt 0:01:56]} f5 {[%emt 0:02:14]} 27. Kf1 {[%emt 0:15:18]} Rxf2+ {[%emt 0:02:06]} 28. Kxf2 {[%emt 0:00:19]} f4 {[%emt 0:00:05]} 29. Rf3 {[%emt 0:02:12]} Qd8 {[%emt 0:00:12]} 30. Rf1 {[%emt 0:03:20]} Bxf3 {[%emt 0:02:06]} 31. Kxf3 {[%emt 0:01:29]} Qh4 {[%emt 0:00:10]} 32. Qe1 {[%emt 0:01:06]} Qh5+ {[%emt 0:00:08]} 33. Kf2 {[%emt 0:00:13]} Rf5 {[%emt 0:01:40]} 34. Qe4 {[%emt 0:01:34]} f3 {[%emt 0:00:45]} 35. gxf3 {[%emt 0:02:41]} Qxh3 {[%emt 0:00:28]} 36. Bxe5 {[%emt 0:00:57]} Qh5 {[%emt 0:00:12]} 37. Bg3 {[%emt 0:01:14]} Rf7 {[%emt 0:00:31]} 38. Re1 {[%emt 0:00:49]} g5 {[%emt 0:00:14]} 39. Qe8+ {[%emt 0:00:34]} Kg7 {[%emt 0:00:10]} 40. Be5+ {[%emt 0:00:00]} 1-0

[Event "European Womens-ch 2025"]
[Site "Rhodes"]
[Date "2025.04.03"]
[Round "4.46"]
[White "Acarbay, Algi"]
[Black "Prado Acebo, Ines"]
[Result "0-1"]
[Annotator "ChessBase"]
[ECO "B90"]
[WhiteElo "2052"]
[BlackElo "2199"]
[PlyCount "94"]
[EventDate "2025.03.29"]
[EventType "swiss"]
[EventCountry "GRE"]
[SourceTitle "playchess.com"]
[Source "ChessBase"]
[SourceQuality "1"]
[TimeControl "40/5400+30:1800+30"]

1. e4 {[%emt 0:00:04]} c5 {[%emt 0:00:12]} 2. Nf3 {[%emt 0:00:09]} d6 {[%emt 0:00:08]} 3. d4 {[%emt 0:00:09]} cxd4 {[%emt 0:00:11]} 4. Nxd4 {[%emt 0:00:06]} Nf6 {[%emt 0:00:09]} 5. Nc3 {[%emt 0:00:07]} a6 {[%emt 0:00:04]} 6. Be3 {[%emt 0:00:09]} e5 {[%emt 0:00:26]} 7. Nb3 {[%emt 0:00:09]} Be6 {[%emt 0:00:34]} 8. Rg1 {[%emt 0:00:34]} h5 {[%emt 0:14:44]} 9. h3 {[%emt 0:00:58]} h4 {[%emt 0:06:11]} 10. Qd2 {[%emt 0:01:29]} Nbd7 {[%emt 0:04:42]} 11. O-O-O {[%emt 0:01:43]} b5 {[%emt 0:04:34]} 12. Kb1 {[%emt 0:04:46]} Rc8 {[%emt 0:03:26]} 13. f4 {[%emt 0:03:17]} Qc7 {[%emt 0:05:22]} 14. f5 {[%emt 0:03:14]} Bc4 {[%emt 0:01:57]} 15. a3 {[%emt 0:01:55]} Nb6 {[%emt 0:07:48]} 16. Qf2 {[%emt 0:10:23]} Na4 {[%emt 0:08:00]} 17. Nxa4 {[%emt 0:07:35]} bxa4 {[%emt 0:03:13]} 18. Bb6 {[%emt 0:02:21]} Nxe4 {[%emt 0:06:44]} 19. Qe3 {[%emt 0:02:09]} Qb8 {[%emt 0:00:33]} 20. Bxc4 {[%emt 0:10:10]} Rxc4 {[%emt 0:00:27]} 21. Na5 {[%emt 0:00:28]} Nc3+ {[%emt 0:07:54]} 22. bxc3 {[%emt 0:12:39]} Rc5 {[%emt 0:00:10]} 23. Qxc5 {[%emt 0:03:27]} dxc5 {[%emt 0:00:03]} 24. Rd8+ {[%emt 0:00:05]} Qxd8 {[%emt 0:00:06]} 25. Bxd8 {[%emt 0:00:05]} Kxd8 {[%emt 0:00:06]} 26. Nc6+ {[%emt 0:00:24]} Kc7 {[%emt 0:00:17]} 27. Nxe5 {[%emt 0:00:24]} Be7 {[%emt 0:06:57]} 28. c4 {[%emt 0:07:03]} Bf6 {[%emt 0:07:22]} 29. Nd3 {[%emt 0:00:34]} Rb8+ {[%emt 0:01:02]} 30. Ka2 {[%emt 0:00:09]} Kc6 {[%emt 0:07:58]} 31. Re1 {[%emt 0:01:50]} Rd8 {[%emt 0:01:28]} 32. Re4 {[%emt 0:03:26]} Rd4 {[%emt 0:00:37]} 33. Rg4 {[%emt 0:04:44]} Kd6 {[%emt 0:02:34]} 34. Kb1 {[%emt 0:01:04]} Rxg4 {[%emt 0:00:53]} 35. hxg4 {[%emt 0:00:03]} Bg5 {[%emt 0:00:22]} 36. c3 {[%emt 0:02:47]} Bf6 {[%emt 0:00:40]} 37. Kc2 {[%emt 0:00:18]} Be5 {[%emt 0:00:29]} 38. Kd2 {[%emt 0:00:19]} Bf6 {[%emt 0:00:11]} 39. Ke3 {[%emt 0:06:08]} Bxc3 {[%emt 0:00:22]} 40. Ke4 {[%emt 0:00:00]} Bd4 {[%emt 0:00:00]} 41. Kf4 {[%emt 0:07:38]} a5 {[%emt 0:05:53]} 42. Ne1 {[%emt 0:03:59]} Bb2 {[%emt 0:01:49]} 43. Nc2 {[%emt 0:02:09]} Bc1+ {[%emt 0:00:24]} 44. Ke4 {[%emt 0:00:13]} f6 {[%emt 0:01:25]} 45. Ne1 {[%emt 0:08:55]} Bxa3 {[%emt 0:01:02]} 46. Nf3 {[%emt 0:03:00]} Bc1 {[%emt 0:02:33]} 47. Kd3 {[%emt 0:00:07]} a3 {[%emt 0:00:16]} 0-1

[Event "European Womens-ch 2025"]
[Site "Rhodes"]
[Date "2025.04.03"]
[Round "4.47"]
[White "Terbe, Zsuzsanna"]
[Black "Caku, Kler"]
[Result "1-0"]
[Annotator "RC"]
[ECO "D25"]
[WhiteElo "2179"]
[BlackElo "2036"]
[PlyCount "75"]
[EventDate "2025.03.29"]
[EventType "swiss"]
[EventCountry "GRE"]
[SourceTitle "playchess.com"]
[Source "ChessBase"]
[SourceQuality "1"]
[TimeControl "40/5400+30:1800+30"]

1. d4 {[%emt 1:31:00]} d5 {[%emt 0:01:05]} 2. c4 {[%emt 0:00:00]} dxc4 {[%emt 0:00:43]} 3. Nf3 {[%emt 0:00:00]} Nf6 {[%emt 0:00:08]} 4. e3 {[%emt 0:00:00]} Bg4 {[%emt 0:00:06]} 5. Bxc4 {[%emt 0:00:00]} e6 {[%emt 0:00:08]} 6. Be2 {[%emt 0:00:00]} c5 {[%emt 0:04:30]} 7. h3 {[%emt 0:00:00]} Bh5 {[%emt 0:00:25]} 8. O-O {[%emt 0:00:00]} cxd4 {[%emt 0:01:01]} 9. Nxd4 {[%emt 0:00:00]} Bxe2 {[%emt 0:00:44]} 10. Qxe2 {[%emt 0:00:00]} Nbd7 {[%emt 0:02:31]} 11. b3 {[%emt 0:00:00]} Bc5 {[%emt 0:03:11]} 12. Bb2 {[%emt 0:00:00]} O-O {[%emt 0:00:12]} 13. Nd2 {[%emt 0:00:00]} Qe7 {[%emt 0:02:36]} 14. a3 {[%emt 0:00:00]} Rfd8 {[%emt 0:01:53]} 15. b4 {[%emt 0:00:00]} Bxd4 {[%emt 0:06:41]} 16. Bxd4 {[%emt 0:00:00]} e5 {[%emt 0:00:10]} 17. Bb2 {[%emt 0:00:00]} Nb6 {[%emt 0:09:41]} 18. Nf3 {[%emt 0:00:00]} e4 {[%emt 0:03:35]} 19. Nd2 {[%emt 0:00:00]} Qe6 {[%emt 0:15:47]} 20. Bxf6 {[%emt 0:00:00]} gxf6 {[%emt 0:00:06]} 21. Rfc1 {[%emt 0:00:00]} Kh8 {[%emt 0:05:52]} 22. Nf1 {[%emt 0:00:00]} Rd3 {[%emt 0:01:32]} 23. Ng3 {[%emt 0:00:00]} Rg8 {[%emt 0:02:29]} 24. Qh5 {[%emt 0:00:00]} Nc4 {[%emt 0:09:21]} 25. Qh4 {[%emt 0:00:00]} Nd2 {[%emt 0:04:28]} 26. Rc5 {[%emt 0:00:00]} b6 {[%emt 0:04:51]} 27. Rh5 {[%emt 0:00:00]} Rg7 {[%emt 0:00:08]} 28. Kh1 {[%emt 0:00:44]} Qd7 {[%emt 0:04:46]} 29. Qxf6 {[%emt 0:01:35]} Rd6 {[%emt 0:01:57]} 30. Qb2 {[%emt 0:02:12]} Nc4 {[%emt 0:03:45]} 31. Qc3 {[%emt 0:00:29]} f6 {[%emt 0:04:29]} 32. Qxc4 {[%emt 0:03:09]} Rd1+ {[%emt 0:00:05]} 33. Rxd1 {[%emt 0:00:06]} Qxd1+ {[%emt 0:00:06]} 34. Qf1 {[%emt 0:00:25]} Qc2 {[%emt 0:00:37]} 35. Rd5 {[%emt 0:00:26]} Qc7 {[%emt 0:00:44]} 36. Qd1 {[%emt 0:00:16]} Rg8 {[%emt 0:00:12]} 37. Rd7 {[%emt 0:00:31]} Qe5 {[%emt 0:00:05]} 38. Rxa7 {[%emt 0:01:00]} 1-0

[Event "European Womens-ch 2025"]
[Site "Rhodes"]
[Date "2025.04.03"]
[Round "4.48"]
[White "Bochnickova, Simona"]
[Black "Subramanian, Anusha"]
[Result "1-0"]
[Annotator "RC"]
[ECO "C42"]
[WhiteElo "2167"]
[BlackElo "2026"]
[PlyCount "92"]
[EventDate "2025.03.29"]
[EventType "swiss"]
[EventCountry "GRE"]
[SourceTitle "playchess.com"]
[Source "ChessBase"]
[SourceQuality "1"]
[TimeControl "40/5400+30:1800+30"]

1. e4 {[%emt 0:00:02]} e5 {[%emt 0:00:05]} 2. Nf3 {[%emt 0:00:04]} Nf6 {[%emt 0:00:04]} 3. Nxe5 {[%emt 0:00:22]} d6 {[%emt 0:00:05]} 4. Nf3 {[%emt 0:00:09]} Nxe4 {[%emt 0:00:05]} 5. Nc3 {[%emt 0:00:05]} Nxc3 {[%emt 0:00:05]} 6. dxc3 {[%emt 0:00:04]} Be7 {[%emt 0:00:05]} 7. Be3 {[%emt 0:00:37]} O-O {[%emt 0:00:07]} 8. Bd3 {[%emt 0:00:27]} Nd7 {[%emt 0:00:41]} 9. Qd2 {[%emt 0:00:47]} Nf6 {[%emt 0:00:06]} 10. O-O-O {[%emt 0:02:19]} c5 {[%emt 0:00:11]} 11. Rhe1 {[%emt 0:09:54]} Qa5 {[%emt 0:01:34]} 12. a3 {[%emt 0:02:25]} Be6 {[%emt 0:01:45]} 13. Ng5 {[%emt 0:02:31]} Rfe8 {[%emt 0:15:08]} 14. Nxe6 {[%emt 0:03:58]} fxe6 {[%emt 0:00:07]} 15. Bg5 {[%emt 0:02:20]} e5 {[%emt 0:08:10]} 16. Re3 {[%emt 0:17:52]} Kh8 {[%emt 0:14:09]} 17. Bf5 {[%emt 0:18:42]} g6 {[%emt 0:20:46]} 18. Bxf6+ {[%emt 0:00:56]} Bxf6 {[%emt 0:00:10]} 19. Rh3 {[%emt 0:00:45]} Qd8 {[%emt 0:03:59]} 20. Qd3 {[%emt 0:08:05]} gxf5 {[%emt 0:06:48]} 21. Qxf5 {[%emt 0:00:05]} Bg5+ {[%emt 0:00:53]} 22. Kb1 {[%emt 0:00:04]} Qe7 {[%emt 0:07:30]} 23. Rh5 {[%emt 0:00:21]} h6 {[%emt 0:03:52]} 24. h4 {[%emt 0:29:36]} Rf8 {[%emt 0:02:02]} 25. Qxg5 {[%emt 0:00:00]} Qxg5 {[%emt 0:01:09]} 26. hxg5 {[%emt 0:00:00]} Rxf2 {[%emt 0:00:55]} 27. Rxd6 {[%emt 0:00:00]} Rxg2 {[%emt 0:01:52]} 28. Rhxh6+ {[%emt 0:00:00]} Kg7 {[%emt 0:00:31]} 29. Rd7+ {[%emt 0:00:00]} Kg8 {[%emt 0:00:08]} 30. Rg6+ {[%emt 0:00:00]} Kh8 {[%emt 0:01:07]} 31. Rxb7 {[%emt 0:00:00]} Re8 {[%emt 0:02:13]} 32. Rgg7 {[%emt 0:00:00]} e4 {[%emt 0:01:49]} 33. Rge7 {[%emt 0:00:00]} Rg1+ {[%emt 0:02:13]} 34. Ka2 {[%emt 0:00:00]} Rxe7 {[%emt 0:00:15]} 35. Rxe7 {[%emt 0:00:00]} Re1 {[%emt 0:00:56]} 36. Rxa7 {[%emt 0:00:00]} e3 {[%emt 0:00:17]} 37. Re7 {[%emt 0:00:00]} Kg8 {[%emt 0:00:30]} 38. b4 {[%emt 0:00:00]} Kf8 {[%emt 0:00:49]} 39. Re5 cxb4 {[%emt 0:00:38]} 40. cxb4 {[%emt 0:00:00]} e2 {[%emt 0:00:00]} 41. a4 {[%emt 0:00:00]} Kf7 {[%emt 0:00:55]} 42. a5 {[%emt 0:00:00]} Rg1 {[%emt 0:00:34]} 43. Rxe2 {[%emt 0:00:00]} Rxg5 {[%emt 0:00:05]} 44. a6 {[%emt 0:00:00]} Rg6 {[%emt 0:00:32]} 45. b5 {[%emt 0:00:00]} Rg4 {[%emt 0:00:15]} 46. Kb3 {[%emt 0:00:00]} Rg3+ {[%emt 0:00:20]} 1-0

[Event "European Womens-ch 2025"]
[Site "Rhodes"]
[Date "2025.04.03"]
[Round "4.49"]
[White "Shuqja, Klean"]
[Black "Piddubna, Bozhena"]
[Result "1/2-1/2"]
[Annotator "RC"]
[ECO "C75"]
[WhiteElo "2049"]
[BlackElo "2145"]
[PlyCount "76"]
[EventDate "2025.03.29"]
[EventType "swiss"]
[EventCountry "GRE"]
[SourceTitle "playchess.com"]
[Source "ChessBase"]
[SourceQuality "1"]
[TimeControl "40/5400+30:1800+30"]

1. e4 {[%emt 0:03:36]} e5 {[%emt 0:00:13]} 2. Nf3 {[%emt 0:00:02]} Nc6 {[%emt 0:00:13]} 3. Bb5 {[%emt 0:00:02]} a6 {[%emt 0:00:10]} 4. Ba4 {[%emt 0:00:01]} d6 {[%emt 0:00:12]} 5. c3 {[%emt 0:01:07]} Bd7 {[%emt 0:00:22]} 6. O-O {[%emt 0:00:03]} Nge7 {[%emt 0:00:34]} 7. d4 {[%emt 0:00:22]} Ng6 {[%emt 0:00:26]} 8. d5 {[%emt 0:01:39]} Nb8 {[%emt 0:00:12]} 9. Bc2 {[%emt 0:00:32]} Be7 {[%emt 0:00:45]} 10. Be3 {[%emt 0:01:04]} O-O {[%emt 0:01:27]} 11. Qd2 {[%emt 0:00:44]} f5 {[%emt 0:05:40]} 12. exf5 {[%emt 0:01:39]} Bxf5 {[%emt 0:00:07]} 13. Bxf5 {[%emt 0:07:25]} Rxf5 {[%emt 0:00:09]} 14. c4 {[%emt 0:02:24]} Qd7 {[%emt 0:18:22]} 15. Qe2 {[%emt 0:10:00]} Rf7 {[%emt 0:02:00]} 16. Nc3 {[%emt 0:02:57]} Qf5 {[%emt 0:01:22]} 17. Nd2 {[%emt 0:04:43]} Nd7 {[%emt 0:11:11]} 18. Nde4 {[%emt 0:02:00]} Nf4 {[%emt 0:00:50]} 19. Bxf4 {[%emt 0:05:47]} exf4 {[%emt 0:00:46]} 20. f3 {[%emt 0:01:58]} Ne5 {[%emt 0:02:03]} 21. b4 {[%emt 0:09:46]} g5 {[%emt 0:06:05]} 22. c5 {[%emt 0:04:01]} Rg7 {[%emt 0:04:26]} 23. cxd6 {[%emt 0:04:04]} cxd6 {[%emt 0:00:51]} 24. Nf2 {[%emt 0:08:37]} Rc8 {[%emt 0:31:06]} 25. Rac1 {[%emt 0:03:39]} h5 {[%emt 0:04:00]} 26. Qe4 {[%emt 0:02:30]} Qd7 {[%emt 0:01:38]} 27. Ne2 {[%emt 0:01:57]} g4 {[%emt 0:00:01]} 28. Rxc8+ {[%emt 0:02:38]} Qxc8 {[%emt 0:00:01]} 29. Rc1 {[%emt 0:00:01]} Qd7 {[%emt 0:01:05]} 30. fxg4 {[%emt 0:09:05]} f3 {[%emt 0:01:53]} 31. gxf3 {[%emt 0:01:05]} hxg4 {[%emt 0:03:41]} 32. f4 {[%emt 0:01:09]} Nf3+ {[%emt 0:00:04]} 33. Kg2 {[%emt 0:00:58]} Rh7 {[%emt 0:01:27]} 34. h3 {[%emt 0:05:54]} Nh4+ {[%emt 0:00:23]} 35. Kh2 {[%emt 0:00:32]} Nf3+ {[%emt 0:01:45]} 36. Kg2 {[%emt 0:00:28]} Nh4+ {[%emt 0:00:25]} 37. Kh2 {[%emt 0:02:56]} Nf3+ {[%emt 0:00:01]} 38. Kg2 {[%emt 0:00:30]} Nh4+ {[%emt 0:00:05]} 1/2-1/2

[Event "European Womens-ch 2025"]
[Site "Rhodes"]
[Date "2025.04.03"]
[Round "4.50"]
[White "Zaksaite, Salomeja"]
[Black "Hariharan, Shambavi"]
[Result "1/2-1/2"]
[Annotator "RC"]
[ECO "D05"]
[WhiteElo "2137"]
[BlackElo "2024"]
[PlyCount "208"]
[EventDate "2025.03.29"]
[EventType "swiss"]
[EventCountry "GRE"]
[SourceTitle "playchess.com"]
[Source "ChessBase"]
[SourceQuality "1"]
[TimeControl "40/5400+30:1800+30"]

1. d4 {[%emt 0:00:07]} d5 {[%emt 0:00:37]} 2. Nf3 {[%emt 0:00:10]} Nf6 {[%emt 0:00:16]} 3. e3 {[%emt 0:00:05]} c5 {[%emt 0:02:25]} 4. b3 {[%emt 0:00:18]} e6 {[%emt 0:00:16]} 5. Bb2 {[%emt 0:00:08]} Nc6 {[%emt 0:00:29]} 6. Bd3 {[%emt 0:00:45]} Be7 {[%emt 0:00:11]} 7. O-O {[%emt 0:00:18]} O-O {[%emt 0:00:15]} 8. Nbd2 {[%emt 0:00:08]} Bd7 {[%emt 0:05:23]} 9. Ne5 {[%emt 0:00:55]} cxd4 {[%emt 0:01:10]} 10. exd4 {[%emt 0:00:13]} Qc7 {[%emt 0:00:18]} 11. a3 {[%emt 0:00:31]} Bd6 {[%emt 0:04:40]} 12. Re1 {[%emt 0:00:36]} Ne7 {[%emt 0:03:12]} 13. Ndf3 {[%emt 0:05:44]} Bc6 {[%emt 0:05:26]} 14. Nxc6 {[%emt 0:09:18]} bxc6 {[%emt 0:03:22]} 15. Ne5 {[%emt 0:03:33]} Ng6 {[%emt 0:03:45]} 16. g3 {[%emt 0:07:51]} c5 {[%emt 0:03:36]} 17. Nxg6 {[%emt 0:02:32]} hxg6 {[%emt 0:00:15]} 18. dxc5 {[%emt 0:00:52]} Bxc5 {[%emt 0:04:46]} 19. Qf3 {[%emt 0:00:19]} Be7 {[%emt 0:04:06]} 20. h4 {[%emt 0:15:47]} Rac8 {[%emt 0:05:06]} 21. Rac1 {[%emt 0:15:18]} Rfd8 {[%emt 0:10:50]} 22. c4 {[%emt 0:01:38]} Qb6 {[%emt 0:06:07]} 23. b4 {[%emt 0:05:51]} dxc4 {[%emt 0:09:53]} 24. Bxc4 {[%emt 0:00:05]} a5 {[%emt 0:02:26]} 25. b5 {[%emt 0:02:27]} a4 {[%emt 0:10:15]} 26. Re2 {[%emt 0:02:21]} Rc5 {[%emt 0:05:47]} 27. Be5 {[%emt 0:03:08]} Rcc8 {[%emt 0:04:08]} 28. Rcc2 {[%emt 0:02:45]} Bc5 {[%emt 0:03:15]} 29. Bxf6 {[%emt 0:00:44]} gxf6 {[%emt 0:00:03]} 30. h5 {[%emt 0:10:17]} gxh5 {[%emt 0:02:05]} 31. Re4 {[%emt 0:05:18]} Rd4 {[%emt 0:00:55]} 32. Bxe6 {[%emt 0:03:51]} Rxe4 {[%emt 0:00:30]} 33. Bxc8 {[%emt 0:00:08]} Re1+ {[%emt 0:00:09]} 34. Kh2 {[%emt 0:00:03]} Qxb5 {[%emt 0:00:10]} 35. Bh3 {[%emt 0:01:04]} Bf8 {[%emt 0:00:53]} 36. Qxf6 {[%emt 0:01:35]} Rh1+ {[%emt 0:00:50]} 37. Kxh1 {[%emt 0:00:11]} Qb1+ {[%emt 0:00:04]} 38. Kg2 {[%emt 0:01:10]} Qxc2 {[%emt 0:00:03]} 39. Bf5 {[%emt 0:00:13]} Qe2 {[%emt 0:00:32]} 40. Qg5+ {[%emt 0:00:00]} Bg7 {[%emt 0:00:00]} 41. Qd8+ {[%emt 0:00:57]} Bf8 {[%emt 0:01:49]} 42. Qa8 {[%emt 0:09:48]} Qe7 {[%emt 0:02:32]} 43. Qxa4 {[%emt 0:01:56]} Qxa3 {[%emt 0:02:46]} 44. Qh4 {[%emt 0:04:15]} Qa8+ {[%emt 0:14:08]} 45. Be4 {[%emt 0:00:06]} Qa5 {[%emt 0:00:14]} 46. Bf3 {[%emt 0:00:10]} Qf5 {[%emt 0:01:16]} 47. Bxh5 {[%emt 0:02:13]} Bc5 {[%emt 0:00:32]} 48. Bf3 {[%emt 0:00:46]} Qc2 {[%emt 0:01:38]} 49. Qg4+ {[%emt 0:00:13]} Kf8 {[%emt 0:01:10]} 50. Be2 {[%emt 0:00:03]} f5 {[%emt 0:03:47]} 51. Qg5 {[%emt 0:06:23]} Ke8 {[%emt 0:06:14]} 52. Qg6+ {[%emt 0:06:22]} Ke7 {[%emt 0:00:53]} 53. Qa6 {[%emt 0:00:55]} Qe4+ {[%emt 0:00:46]} 54. Bf3 {[%emt 0:00:08]} Qd4 {[%emt 0:00:29]} 55. Qe2+ {[%emt 0:00:21]} Kf6 {[%emt 0:00:05]} 56. Bb7 {[%emt 0:01:00]} Bb6 {[%emt 0:00:43]} 57. Qf3 {[%emt 0:00:30]} Bc5 {[%emt 0:00:46]} 58. Qc6+ {[%emt 0:01:22]} Ke7 {[%emt 0:00:05]} 59. Qf3 {[%emt 0:00:42]} Kf6 {[%emt 0:00:04]} 60. Qe2 {[%emt 0:01:27]} Bb6 {[%emt 0:00:34]} 61. Qc2 {[%emt 0:00:29]} Bc5 {[%emt 0:00:19]} 62. Qa2 {[%emt 0:01:39]} Bb6 {[%emt 0:00:22]} 63. Bf3 {[%emt 0:00:59]} Bc5 {[%emt 0:00:22]} 64. Qc2 {[%emt 0:00:25]} Bb6 {[%emt 0:00:40]} 65. Kg1 {[%emt 0:00:30]} Bc5 {[%emt 0:00:21]} 66. Bc6 {[%emt 0:00:26]} Qa1+ {[%emt 0:00:34]} 67. Kh2 {[%emt 0:00:15]} Qd4 {[%emt 0:00:10]} 68. Kg2 {[%emt 0:00:21]} Bb6 {[%emt 0:00:18]} 69. Bb7 {[%emt 0:00:26]} Bc5 {[%emt 0:00:15]} 70. Bf3 {[%emt 0:00:27]} Bb6 {[%emt 0:00:22]} 71. Qc6+ {[%emt 0:00:12]} Ke7 {[%emt 0:00:16]} 72. Qc2 {[%emt 0:00:38]} Kf6 {[%emt 0:00:04]} 73. Kf1 {[%emt 0:00:19]} Qa1+ {[%emt 0:00:49]} 74. Bd1 {[%emt 0:00:06]} Qd4 {[%emt 0:00:13]} 75. Qc6+ {[%emt 0:00:08]} Ke7 {[%emt 0:00:24]} 76. Qf3 {[%emt 0:00:13]} Qc5 {[%emt 0:02:28]} 77. Be2 {[%emt 0:01:01]} Ke6 {[%emt 0:00:43]} 78. Bd3 {[%emt 0:00:24]} Qc1+ {[%emt 0:00:49]} 79. Kg2 {[%emt 0:00:11]} Qc5 {[%emt 0:00:05]} 80. Bxf5+ {[%emt 0:00:22]} Ke7 {[%emt 0:01:14]} 81. g4 {[%emt 0:01:22]} Qe5 {[%emt 0:00:32]} 82. Qa3+ {[%emt 0:01:18]} Bc5 {[%emt 0:00:20]} 83. Qa4 {[%emt 0:00:41]} Qd4 {[%emt 0:00:31]} 84. Qa2 {[%emt 0:00:23]} Qe5 {[%emt 0:00:21]} 85. Kf1 {[%emt 0:00:38]} Kf6 {[%emt 0:00:37]} 86. Qg8 {[%emt 0:00:29]} Qd4 {[%emt 0:00:45]} 87. Qe6+ {[%emt 0:00:39]} Kg5 {[%emt 0:00:07]} 88. Qe2 {[%emt 0:00:54]} Qa1+ {[%emt 0:00:23]} 89. Kg2 {[%emt 0:00:07]} Qd4 {[%emt 0:00:09]} 90. Qf3 {[%emt 0:00:28]} Qf4 {[%emt 0:00:18]} 91. Qe2 {[%emt 0:00:18]} Qd4 {[%emt 0:00:03]} 92. Qc2 {[%emt 0:00:25]} Qd5+ {[%emt 0:01:01]} 93. Be4 {[%emt 0:00:23]} Qd4 {[%emt 0:00:08]} 94. Bf3 {[%emt 0:00:27]} Kh6 {[%emt 0:00:40]} 95. Qc1+ {[%emt 0:01:09]} Kg6 {[%emt 0:00:18]} 96. Qe1 {[%emt 0:00:09]} Kg5 {[%emt 0:00:21]} 97. Qe2 {[%emt 0:00:22]} Kf6 {[%emt 0:01:06]} 98. Bc6 {[%emt 0:00:54]} Kg5 {[%emt 0:00:26]} 99. Bf3 {[%emt 0:00:33]} Kf6 {[%emt 0:00:12]} 100. Qa2 {[%emt 0:00:06]} Kg7 {[%emt 0:00:40]} 101. Bd1 {[%emt 0:00:43]} Qxd1 {[%emt 0:01:20]} 102. Qe6 {[%emt 0:00:10]} Qd4 {[%emt 0:00:15]} 103. Qf5 {[%emt 0:00:09]} Bd6 {[%emt 0:00:45]} 104. Qg5+ {[%emt 0:00:29]} Kf7 {[%emt 0:00:21]} 1/2-1/2